fUST/lending_fUST_20250720
["ID","MTS","AMOUNT","RATE_DAILY","PERIOD"]
[373419568,1752995447408,-151.558243,0.00021042,2]
[373419569,1752995447417,-151.462523,0.00021042,2]
[373419570,1752995447427,-476.42619115,0.00021042,3]
[373419571,1752995447437,-500.0,0.00021064,2]
[373419572,1752995447446,-903.07,0.00021087,2]
[373419573,1752995447455,-2074.93,0.00021088,2]
[373419574,1752995447465,-1576.0,0.00021088,2]
[373419575,1752995447474,-547.75,0.00021088,2]
[373419576,1752995447484,-1233.87,0.00021088,2]
[373419577,1752995447493,-536.93,0.00021088,2]
[373419578,1752995447503,-301.96,0.00021088,2]
[373419579,1752995447512,-460.0,0.00021088,2]
[373419580,1752995447521,-1313.06,0.00021088,2]
[373419581,1752995447530,-490.6,0.00021088,2]
[373419582,1752995447540,-542.34,0.00021088,2]
[373419583,1752995447549,-460.0,0.00021088,2]
[373419584,1752995447559,-460.0,0.00021089,2]
[373419585,1752995447569,-460.0,0.00021089,2]
[373419586,1752995447578,-460.0,0.00021089,2]
[373419587,1752995447588,-680.6,0.00021089,2]
[373419588,1752995447597,-938.04,0.00021089,2]
[373419589,1752995447607,-752.19,0.00021089,2]
[373419590,1752995447616,-151.0,0.0002109,2]
[373419591,1752995447627,-560.56,0.0002109,2]
[373419592,1752995447636,-2459.75,0.0002109,2]
[373419593,1752995447645,-657.44,0.00021093,2]
[373419594,1752995447655,-977.19,0.00021093,2]
[373419595,1752995447665,-852.97,0.00021093,2]
[373419596,1752995447674,-2873.14,0.00021093,2]
[373419597,1752995447683,-937.53,0.00021093,2]
[373419598,1752995447692,-160.0,0.00021096,3]
[373419599,1752995447702,-17672.96712411,0.00021096,3]
[373419600,1752995447711,-3000.0,0.00021146,2]
[373419601,1752995447720,-3466.3661095,0.0002121,4]
[373419602,1752995447730,-903.07,0.00021361,2]
[373419603,1752995447739,-2074.93,0.00021362,2]
[373419604,1752995447748,-1576.0,0.00021362,2]
[373419605,1752995447758,-547.75,0.00021362,2]
[373419606,1752995447767,-1233.87,0.00021362,2]
[373419607,1752995447776,-536.93,0.00021362,2]
[373419608,1752995447786,-460.0,0.00021362,2]
[373419609,1752995447795,-1313.06,0.00021362,2]
[373419610,1752995447804,-490.6,0.00021362,2]
[373419611,1752995447814,-542.34,0.00021362,2]
[373419612,1752995447826,-460.0,0.00021362,2]
[373419613,1752995447927,-460.0,0.00021363,2]
[373419614,1752995447955,-460.0,0.00021363,2]
[373419615,1752995447965,-460.0,0.00021363,2]
[373419616,1752995447975,-680.6,0.00021363,2]
[373419617,1752995447984,-938.04,0.00021363,2]
[373419618,1752995447993,-752.19,0.00021363,2]
[373419619,1752995448003,-560.56,0.00021364,2]
[373419620,1752995448012,-2459.75,0.00021364,2]
[373419621,1752995448022,-657.44,0.00021367,2]
[373419622,1752995448032,-977.19,0.00021367,2]
[373419623,1752995448041,-852.97,0.00021367,2]
[373419624,1752995448051,-2873.14,0.00021367,2]
[373419625,1752995448060,-937.53,0.00021367,2]
[373419626,1752995448070,-3466.3661095,0.00021486,5]
[373419627,1752995448079,-429.4514592,0.00021562,2]
[373419628,1752995448089,-429.4514592,0.00021562,2]
[373419629,1752995448098,-429.4514592,0.00021562,2]
[373419630,1752995448108,-429.4514592,0.00021562,2]
[373419631,1752995448118,-429.4514592,0.00021562,2]
[373419632,1752995448128,-429.4514592,0.00021562,2]
[373419633,1752995448137,-429.4514592,0.00021562,2]
[373419634,1752995448147,-429.4514592,0.00021562,2]
[373419635,1752995448156,-429.4514592,0.00021562,2]
[373419636,1752995448166,-429.4514592,0.00021562,2]
[373419637,1752995448175,-429.4514592,0.00021562,2]
[373419638,1752995448185,-429.4514592,0.00021562,2]
[373419639,1752995448195,-182.3567733,0.00021562,2]
[373419640,1752995448204,-903.07,0.00021635,2]
[373419641,1752995448214,-2074.93,0.00021636,2]
[373419642,1752995448223,-1576.0,0.00021636,2]
[373419643,1752995448233,-547.75,0.00021636,2]
[373419644,1752995448243,-1233.87,0.00021636,2]
[373419645,1752995448252,-536.93,0.00021636,2]
[373419646,1752995448261,-331.47,0.00021636,2]
[373419647,1752995448271,-1313.06,0.00021636,2]
[373419648,1752995448281,-490.6,0.00021636,2]
[373419649,1752995448291,-542.34,0.00021636,2]
[373419650,1752995448301,-460.0,0.00021636,2]
[373419651,1752995448311,-597.86,0.00021637,2]
[373419652,1752995448321,-460.0,0.00021637,2]
[373419653,1752995448331,-460.0,0.00021637,2]
[373419654,1752995448341,-680.6,0.00021637,2]
[373419655,1752995448350,-938.04,0.00021637,2]
[373419656,1752995448359,-752.19,0.00021637,2]
[373419657,1752995448370,-560.56,0.00021638,2]
[373419658,1752995448380,-2459.75,0.00021638,2]
[373419659,1752995448390,-657.44,0.00021641,2]
[373419660,1752995448400,-977.19,0.00021641,2]
[373419661,1752995448409,-852.97,0.00021641,2]
[373419662,1752995448419,-2873.14,0.00021641,2]
[373419663,1752995448429,-937.53,0.00021641,2]
[373419664,1752995448438,-3466.3661095,0.00021762,5]
[373419665,1752995448448,-500.0,0.00021769,2]
[373419666,1752995448458,-294.24469616,0.00021769,2]
[373419667,1752995448468,-500.0,0.00021769,2]
[373419668,1752995448478,-500.0,0.00021769,2]
[373419669,1752995448487,-295.1207454,0.00021769,2]
[373419670,1752995448497,-491.63290552,0.00021798,2]
[373419671,1752995448507,-903.07,0.00021909,2]
[373419672,1752995448516,-2074.93,0.0002191,2]
[373419673,1752995448526,-1576.0,0.0002191,2]
[373419674,1752995448536,-547.75,0.0002191,2]
[373419675,1752995448546,-1233.87,0.0002191,2]
[373419676,1752995448555,-536.93,0.0002191,2]
[373419677,1752995448565,-1313.06,0.0002191,2]
[373419678,1752995448575,-490.6,0.0002191,2]
[373419679,1752995448584,-542.34,0.0002191,2]
[373419680,1752995448594,-460.0,0.0002191,2]
[373419681,1752995448603,-460.0,0.00021911,2]
[373419682,1752995448613,-460.0,0.00021911,2]
[373419683,1752995448622,-680.6,0.00021911,2]
[373419684,1752995448633,-938.04,0.00021911,2]
[373419685,1752995448643,-752.19,0.00021911,2]
[373419686,1752995448653,-560.56,0.00021912,2]
[373419687,1752995448662,-2459.75,0.00021912,2]
[373419688,1752995448672,-267.564017,0.00021915,2]
[373419689,1752995448682,-657.44,0.00021915,2]
[373419690,1752995448692,-977.19,0.00021915,2]
[373419691,1752995448702,-852.97,0.00021915,2]
[373419692,1752995448711,-2873.14,0.00021915,2]
[373419693,1752995448722,-937.53,0.00021915,2]
[373419694,1752995448731,-3751.61527514,0.0002192,2]
[373419695,1752995448741,-274.06147548,0.00021973,2]
[373419696,1752995448751,-500.0,0.00021973,2]
[373419697,1752995448761,-2919.32,0.00022,7]
[373419698,1752995448770,-51335.42,0.00022,2]
[373419699,1752995448780,-3000.0,0.00022,2]
[373419700,1752995448790,-151.775212,0.00022,7]
[373419701,1752995448799,-151.0,0.00022,7]
[373419702,1752995448810,-151.0,0.00022,7]
[373419703,1752995448820,-189.644247,0.00022,7]
[373419704,1752995448829,-151.0,0.00022,7]
[373419705,1752995448839,-160.0,0.00022,2]
[373419706,1752995448848,-3000.0,0.0002201,2]
[373419707,1752995448858,-3000.0,0.0002202,2]
[373419708,1752995448868,-172.498184,0.00022028,7]
[373419709,1752995448878,-172.498184,0.00022028,7]
[373419710,1752995448890,-3000.0,0.0002203,2]
[373419711,1752995448901,-3466.3661095,0.00022038,6]
[373419712,1752995448910,-3000.0,0.0002204,2]
[373419713,1752995448920,-3000.0,0.0002205,2]
[373419714,1752995448931,-3000.0,0.0002206,2]
[373419715,1752995448940,-663.37524786,0.0002206,2]
[373419716,1752995448950,-3000.0,0.0002207,2]
[373419717,1752995448960,-3000.0,0.0002208,2]
[373419718,1752995448971,-222.66,0.00022089,4]
[373419719,1752995448981,-173.18378388,0.00022089,4]
[373419720,1752995448991,-3000.0,0.0002209,2]
[373419721,1752995449000,-3000.0,0.000221,2]
[373419722,1752995449010,-3000.0,0.0002211,2]
[373419723,1752995449020,-3000.0,0.0002212,2]
[373419724,1752995449030,-3000.0,0.0002213,2]
[373419725,1752995449040,-153.0,0.00022137,2]
[373419726,1752995449049,-177.1379916,0.00022137,2]
[373419727,1752995449060,-159.8396335,0.00022137,2]
[373419728,1752995449069,-153.0,0.00022137,2]
[373419729,1752995449079,-577.2483964,0.00022137,2]
[373419730,1752995449089,-153.0,0.00022137,2]
[373419731,1752995449098,-577.2483964,0.00022137,2]
[373419732,1752995449108,-159.8396335,0.00022137,2]
[373419733,1752995449118,-153.0,0.00022137,2]
[373419734,1752995449128,-153.0,0.00022137,2]
[373419735,1752995449138,-166.1771152,0.00022137,2]
[373419736,1752995449148,-159.8396335,0.00022137,2]
[373419737,1752995449158,-159.8396335,0.00022137,2]
[373419738,1752995449167,-153.0,0.00022137,2]
[373419739,1752995449176,-159.8396335,0.00022137,2]
[373419740,1752995449185,-159.8396335,0.00022137,2]
[373419741,1752995449195,-159.8396335,0.00022137,2]
[373419742,1752995449204,-153.0,0.00022137,2]
[373419743,1752995449214,-159.8396335,0.00022137,2]
[373419744,1752995449224,-159.8396335,0.00022137,2]
[373419745,1752995449234,-159.8396335,0.00022137,2]
[373419746,1752995449243,-157.2306603,0.00022137,2]
[373419747,1752995449252,-3000.0,0.0002214,2]
[373419748,1752995449262,-223.0315306,0.00022149,2]
[373419749,1752995449271,-3000.0,0.0002215,2]
[373419750,1752995449281,-500.0,0.0002216,2]
[373419751,1752995449290,-3000.0,0.0002216,2]
[373419752,1752995449300,-3000.0,0.0002217,2]
[373419753,1752995449309,-3000.0,0.0002218,2]
[373419754,1752995449318,-903.07,0.00022183,2]
[373419755,1752995449327,-2074.93,0.00022184,2]
[373419756,1752995449337,-1576.0,0.00022184,2]
[373419757,1752995449346,-547.75,0.00022184,2]
[373419758,1752995449356,-1233.87,0.00022184,2]
[373419759,1752995449367,-536.93,0.00022184,2]
[373419760,1752995449377,-1313.06,0.00022184,2]
[373419761,1752995449387,-490.6,0.00022184,2]
[373419762,1752995449398,-542.34,0.00022184,2]
[373419763,1752995449407,-258.39792919,0.00022184,2]
[373419764,1752995449418,-460.0,0.00022185,2]
[373419765,1752995449427,-460.0,0.00022185,2]
[373419766,1752995449437,-680.6,0.00022185,2]
[373419767,1752995449447,-938.04,0.00022185,2]
[373419768,1752995449456,-752.19,0.00022185,2]
[373419769,1752995449466,-560.56,0.00022186,2]
[373419770,1752995449475,-2459.75,0.00022186,2]
[373419771,1752995449484,-657.44,0.00022189,2]
[373419772,1752995449494,-977.19,0.00022189,2]
[373419773,1752995449505,-852.97,0.00022189,2]
[373419774,1752995449514,-2873.14,0.00022189,2]
[373419775,1752995449524,-937.53,0.00022189,2]
[373419776,1752995449534,-3000.0,0.0002219,2]
[373419777,1752995449543,-151.0,0.00022192,7]
[373419778,1752995449553,-847.65,0.000222,7]
[373419779,1752995449563,-3000.0,0.000222,2]
[373419780,1752995449572,-151.0,0.000222,7]
[373419781,1752995449582,-151.0,0.000222,7]
[373419782,1752995449591,-3000.0,0.0002221,2]
[373419783,1752995449603,-2833.5471421,0.0002222,2]
[373419784,1752995449694,-166.4528579,0.0002222,2]
[373419785,1752995449704,-3000.0,0.0002223,2]
[373419786,1752995449713,-3000.0,0.0002224,2]
[373419787,1752995449724,-3000.0,0.0002225,2]
[373419788,1752995449743,-4640.78395,0.0002226,2]
[373419789,1752995449755,-3466.3661095,0.00022314,7]
[373419790,1752995449766,-151.0,0.00022314,7]
[373419791,1752995449775,-151.0,0.00022314,7]
[373419792,1752995449785,-155.83123189,0.0002232,4]
[373419793,1752995449795,-903.07,0.00022457,2]
[373419794,1752995449805,-2074.93,0.00022458,2]
[373419795,1752995449816,-1576.0,0.00022458,2]
[373419796,1752995449827,-547.75,0.00022458,2]
[373419797,1752995449837,-1233.87,0.00022458,2]
[373419798,1752995449847,-536.93,0.00022458,2]
[373419799,1752995449857,-1313.06,0.00022458,2]
[373419800,1752995449867,-490.6,0.00022458,2]
[373419801,1752995449877,-542.34,0.00022458,2]
[373419802,1752995449890,-460.0,0.00022459,2]
[373419803,1752995449900,-460.0,0.00022459,2]
[373419804,1752995449910,-680.6,0.00022459,2]
[373419805,1752995449920,-938.04,0.00022459,2]
[373419806,1752995449931,-752.19,0.00022459,2]
[373419807,1752995449940,-823.0,0.00022459,2]
[373419808,1752995449951,-560.56,0.0002246,2]
[373419809,1752995449960,-2459.75,0.0002246,2]
[373419810,1752995449972,-154.826499,0.00022463,7]
[373419811,1752995449982,-657.44,0.00022463,2]
[373419812,1752995449992,-977.19,0.00022463,2]
[373419813,1752995450002,-852.97,0.00022463,2]
[373419814,1752995450012,-2873.14,0.00022463,2]
[373419815,1752995450021,-937.53,0.00022463,2]
[373419816,1752995450031,-3466.3661095,0.0002259,7]
[373419817,1752995450042,-12615.16111038,0.000226,7]
[373419818,1752995450052,-180.005217,0.00022603,2]
[373419819,1752995450063,-518.41,0.00022636,5]
[373419820,1752995450073,-518.41,0.00022652,2]
[373419821,1752995450082,-903.07,0.00022731,2]
[373419822,1752995450092,-2074.93,0.00022732,2]
[373419823,1752995450101,-1576.0,0.00022732,2]
[373419824,1752995450111,-547.75,0.00022732,2]
[373419825,1752995450120,-1233.87,0.00022732,2]
[373419826,1752995450130,-536.93,0.00022732,2]
[373419827,1752995450139,-1313.06,0.00022732,2]
[373419828,1752995450149,-490.6,0.00022732,2]
[373419829,1752995450160,-542.34,0.00022732,2]
[373419830,1752995450170,-460.0,0.00022733,2]
[373419831,1752995450180,-557.66,0.00022733,2]
[373419832,1752995450190,-680.6,0.00022733,2]
[373419833,1752995450200,-938.04,0.00022733,2]
[373419834,1752995450210,-752.19,0.00022733,2]
[373419835,1752995450220,-560.56,0.00022734,2]
[373419836,1752995450230,-2459.75,0.00022734,2]
[373419837,1752995450239,-518.41,0.00022736,3]
[373419838,1752995450249,-657.44,0.00022737,2]
[373419839,1752995450258,-977.19,0.00022737,2]
[373419840,1752995450267,-852.97,0.00022737,2]
[373419841,1752995450277,-2873.14,0.00022737,2]
[373419842,1752995450287,-937.53,0.00022737,2]
[373419843,1752995450296,-160.0,0.000228,7]
[373419844,1752995450305,-518.41,0.00022836,6]
[373419845,1752995450317,-3466.3661095,0.00022866,8]
[373419846,1752995450327,-152.473751,0.00022936,7]
[373419847,1752995450336,-518.41,0.00022936,3]
[373419848,1752995450345,-491.63290552,0.00022959,2]
[373419849,1752995450423,-151.0,0.0002299,7]
[373419850,1752995450433,-151.0,0.0002299,7]
[373419851,1752995450442,-206.987877,0.0002299,7]
[373419852,1752995450451,-206.987877,0.0002299,7]
[373419853,1752995450460,-202.307105,0.0002299,7]
[373419854,1752995450469,-202.307105,0.0002299,7]
[373419855,1752995450478,-525.91036056,0.00023,3]
[373419856,1752995450487,-160.0,0.00023,3]
[373419857,1752995450496,-160.0,0.00023,3]
[373419858,1752995450506,-160.0,0.00023,3]
[373419859,1752995450516,-215.71456056,0.00023,3]
[373419860,1752995450525,-160.0,0.00023,3]
[373419861,1752995450534,-839.59621281,0.00023,3]
[373419862,1752995450543,-160.0,0.00023,3]
[373419863,1752995450552,-230.98123516,0.00023,3]
[373419864,1752995450562,-903.07,0.00023005,2]
[373419865,1752995450572,-2074.93,0.00023006,2]
[373419866,1752995450582,-1576.0,0.00023006,2]
[373419867,1752995450591,-547.75,0.00023006,2]
[373419868,1752995450600,-1233.87,0.00023006,2]
[373419869,1752995450609,-536.93,0.00023006,2]
[373419870,1752995450619,-1313.06,0.00023006,2]
[373419871,1752995450627,-490.6,0.00023006,2]
[373419872,1752995450637,-542.34,0.00023006,2]
[373419873,1752995450645,-460.0,0.00023007,2]
[373419874,1752995450655,-680.6,0.00023007,2]
[373419875,1752995450664,-938.04,0.00023007,2]
[373419876,1752995450673,-752.19,0.00023007,2]
[373419877,1752995450682,-560.56,0.00023008,2]
[373419878,1752995450691,-2459.75,0.00023008,2]
[373419879,1752995450701,-657.44,0.00023011,2]
[373419880,1752995450710,-977.19,0.00023011,2]
[373419881,1752995450720,-852.97,0.00023011,2]
[373419882,1752995450729,-2873.14,0.00023011,2]
[373419883,1752995450738,-937.53,0.00023011,2]
[373419884,1752995450748,-160.0,0.00023014,7]
[373419885,1752995450757,-518.41,0.00023036,7]
[373419886,1752995450767,-136116.37957163,0.00023048,2]
[373419887,1752995450776,-151.0,0.00023048,7]
[373419888,1752995450786,-151.0,0.00023048,7]
[373419889,1752995450796,-151.0,0.00023048,7]
[373419890,1752995450807,-151.0,0.00023048,7]
[373419891,1752995450817,-153.24464,0.00023048,7]
[373419892,1752995450827,-172.498184,0.00023048,7]
[373419893,1752995450836,-172.498184,0.00023048,7]
[373419894,1752995450846,-151.0,0.00023048,7]
[373419895,1752995450855,-151.0,0.00023048,7]
[373419896,1752995450865,-472.88670851,0.00023073,2]
[373419897,1752995450875,-5864.95,0.000231,7]
[373419898,1752995450886,-518.41,0.00023136,5]
[373419899,1752995450902,-3466.3661095,0.00023141,8]
[373419900,1752995450913,-173.18378388,0.00023147,4]
[373419901,1752995450923,-2919.32,0.000232,7]
[373419902,1752995450933,-51335.42,0.000232,2]
[373419903,1752995450942,-151.0,0.000232,7]
[373419904,1752995450952,-152.977185,0.000232,7]
[373419905,1752995450962,-152.103192,0.000232,7]
[373419906,1752995450972,-271.67811,0.000232,7]
[373419907,1752995450981,-271.67811,0.000232,7]
[373419908,1752995450992,-204.236992,0.000232,7]
[373419909,1752995451002,-204.236992,0.000232,7]
[373419910,1752995451011,-151.0,0.000232,7]
[373419911,1752995451021,-216.008022,0.000232,7]
[373419912,1752995451030,-151.0,0.000232,7]
[373419913,1752995451040,-206.987877,0.000232,7]
[373419914,1752995451050,-206.987877,0.000232,7]
[373419915,1752995451060,-202.307105,0.000232,7]
[373419916,1752995451070,-202.307105,0.000232,7]
[373419917,1752995451079,-518.44925001,0.00023236,2]
[373419918,1752995451090,-903.07,0.00023279,2]
[373419919,1752995451100,-2074.93,0.0002328,2]
[373419920,1752995451109,-1576.0,0.0002328,2]
[373419921,1752995451119,-547.75,0.0002328,2]
[373419922,1752995451128,-536.93,0.0002328,2]
[373419923,1752995451138,-1233.87,0.0002328,2]
[373419924,1752995451147,-1313.06,0.0002328,2]
[373419925,1752995451157,-490.6,0.0002328,2]
[373419926,1752995451167,-542.34,0.0002328,2]
[373419927,1752995451176,-525.50766991,0.00023281,2]
[373419928,1752995451185,-680.6,0.00023281,2]
[373419929,1752995451195,-938.04,0.00023281,2]
[373419930,1752995451206,-752.19,0.00023281,2]
[373419931,1752995451216,-560.56,0.00023282,2]
[373419932,1752995451226,-2459.75,0.00023282,2]
[373419933,1752995451237,-657.44,0.00023285,2]
[373419934,1752995451248,-977.19,0.00023285,2]
[373419935,1752995451258,-852.97,0.00023285,2]
[373419936,1752995451268,-2873.14,0.00023285,2]
[373419937,1752995451277,-937.53,0.00023285,2]
[373419938,1752995451287,-1219.99,0.000234,2]
[373419939,1752995451298,-3466.3661095,0.00023417,9]
[373419940,1752995451307,-231.28369723,0.00023518,2]
[373419941,1752995451317,-2075.16579566,0.00023553,2]
[373419942,1752995451327,-1576.10783011,0.00023553,2]
[373419943,1752995451336,-547.94004944,0.00023553,2]
[373419944,1752995451346,-537.13,0.00023553,2]
[373419945,1752995451356,-1233.92,0.00023553,2]
[373419946,1752995451366,-1313.29,0.00023553,2]
[373419947,1752995451375,-490.66438775,0.00023553,2]
[373419948,1752995451384,-903.22500336,0.00023553,2]
[373419949,1752995451394,-542.50895078,0.00023553,2]
[373419950,1752995451404,-680.75818817,0.00023555,2]
[373419951,1752995451413,-938.04023351,0.00023555,2]
[373419952,1752995451422,-752.36287664,0.00023555,2]
[373419953,1752995451432,-560.73,0.00023556,2]
[373419954,1752995451442,-2459.75287887,0.00023556,2]
[373419955,1752995451451,-657.44418548,0.00023559,2]
[373419956,1752995451461,-977.41122138,0.00023559,2]
[373419957,1752995451471,-853.04612365,0.00023559,2]
[373419958,1752995451481,-2873.26245524,0.00023559,2]
[373419959,1752995451490,-937.56,0.00023559,2]
[373419960,1752995451500,-3466.3661095,0.00023693,9]
[373419961,1752995451509,-150.103,0.00023884,2]
[373419962,1752995451519,-461.67059267,0.00023888,2]
[373419963,1752995451528,-159199.25086314,0.00023888,2]
[373419964,1752995451538,-151.0,0.00023888,7]
[373419965,1752995451547,-151.0,0.00023888,7]
[373419966,1752995451557,-151.0,0.00023888,7]
[373419967,1752995451567,-151.0,0.00023888,7]
[373419968,1752995451577,-151.0,0.00023888,7]
[373419969,1752995451587,-151.0,0.00023888,7]
[373419970,1752995451596,-151.0,0.00023888,7]
[373419971,1752995451606,-151.0,0.00023888,7]
[373419972,1752995451616,-172.498184,0.00023888,7]
[373419973,1752995451625,-172.498184,0.00023888,7]
[373419974,1752995451636,-151.0,0.00023888,7]
[373419975,1752995451646,-274.289482,0.00023888,7]
[373419976,1752995451655,-271.67811,0.000239,7]
[373419977,1752995451665,-271.67811,0.000239,7]
[373419978,1752995451675,-204.236992,0.000239,7]
[373419979,1752995451684,-204.236992,0.000239,7]
[373419980,1752995451694,-151.0,0.000239,7]
[373419981,1752995451704,-151.0,0.000239,7]
[373419982,1752995451714,-206.987877,0.000239,7]
[373419983,1752995451724,-206.987877,0.000239,7]
[373419984,1752995451734,-202.307105,0.000239,7]
[373419985,1752995451744,-202.307105,0.000239,7]
[373419986,1752995451753,-3617.22828365,0.000239,2]
[373419987,1752995451763,-3466.3661095,0.00023969,10]
[373419988,1752995451773,-847.65,0.00024,7]
[373419989,1752995451783,-54206.62264,0.00024,2]
[373419990,1752995451797,-1626.45,0.00024,2]
[373419991,1752995452684,-460.0,0.00017253,2]
[373419992,1752995452694,-460.0,0.00017527,2]
[373419993,1752995452704,-460.0,0.00017801,2]
[373419994,1752995452714,-529.9,0.00018075,2]
[373419995,1752995452726,-460.0,0.00018622,2]
[373419996,1752995452736,-460.0,0.00018896,2]
[373419997,1752995452745,-460.0,0.0001917,2]
[373419998,1752995452757,-460.0,0.00019444,2]
[373419999,1752995452767,-460.0,0.00019718,2]
[373420000,1752995452777,-460.0,0.00019992,2]
[373420001,1752995452786,-460.0,0.00020266,2]
[373420002,1752995452796,-397.74335763,0.0002054,2]
[373420003,1752995599704,160.02552,0.00013699,2]
[373420008,1752996103536,510.0,0.0001652,2]
[373420057,1752996632522,-223.94615343,0.0001715,2]
[373420060,1752996632532,-406.57034125,0.00017153,2]
[373420063,1752996632541,-164.63850532,0.00017247,2]
[373420066,1752996632552,-522.32389176,0.00017247,2]
[373420069,1752996632564,-471.98987529,0.00017247,2]
[373420071,1752996632575,-41.04772763,0.00017247,2]
[373420073,1752996632585,-1075.0,0.00017248,2]
[373420075,1752996632594,-300.0,0.00017248,2]
[373420077,1752996632603,-300.0,0.00017248,2]
[373420079,1752996632613,-300.0,0.00017248,2]
[373420081,1752996632622,-300.0,0.00017248,2]
[373420083,1752996632631,-460.0,0.00017249,2]
[373420085,1752996632641,-460.66124518,0.00017249,2]
[373420087,1752996632650,-460.0,0.00017249,2]
[373420089,1752996632660,-460.0,0.00017249,2]
[373420091,1752996632670,-261.08927528,0.00017249,2]
[373420093,1752996632679,-460.0,0.00017249,2]
[373420095,1752996632688,-460.0,0.00017249,2]
[373420097,1752996632698,-460.0,0.00017249,2]
[373420099,1752996632707,-490.92434587,0.00017249,2]
[373420102,1752996632716,-460.0,0.00017249,2]
[373420105,1752996632725,-751.82,0.00017249,2]
[373420108,1752996632735,-460.0,0.00017249,2]
[373420111,1752996632744,-460.0,0.00017249,2]
[373420114,1752996632753,-460.0,0.0001725,2]
[373420117,1752996632763,-460.0,0.0001725,2]
[373420119,1752996632772,-460.0,0.0001725,2]
[373420122,1752996632781,-460.0,0.0001725,2]
[373420125,1752996632790,-460.0,0.0001725,2]
[373420128,1752996632800,-461.46166711,0.0001725,2]
[373420131,1752996632809,-460.0,0.0001725,2]
[373420134,1752996632819,-460.0,0.0001725,2]
[373420137,1752996632827,-460.0,0.0001725,2]
[373420140,1752996632837,-460.0,0.0001725,2]
[373420143,1752996632846,-460.0,0.0001725,2]
[373420146,1752996632856,-460.0,0.0001725,2]
[373420149,1752996632865,-460.0,0.0001725,2]
[373420151,1752996632874,-460.0,0.0001725,2]
[373420153,1752996632884,-461.27915219,0.0001725,2]
[373420155,1752996632893,-460.0,0.0001725,2]
[373420158,1752996632903,-460.0,0.0001725,2]
[373420160,1752996632912,-460.0,0.0001725,2]
[373420162,1752996632922,-460.0,0.0001725,2]
[373420164,1752996632932,-462.39473424,0.0001725,2]
[373420165,1752996632941,-461.04734821,0.0001725,2]
[373420167,1752996632950,-460.0,0.0001725,2]
[373420169,1752996632959,-461.28036586,0.0001725,2]
[373420171,1752996632968,-460.0,0.0001725,2]
[373420173,1752996632977,-460.0,0.0001725,2]
[373420175,1752996632986,-460.0,0.0001725,2]
[373420177,1752996632995,-460.0,0.0001725,2]
[373420179,1752996633005,-503.89607381,0.0001725,2]
[373420181,1752996633014,-460.0,0.0001725,2]
[373420183,1752996633023,-460.0,0.0001725,2]
[373420185,1752996633032,-460.77353787,0.0001725,2]
[373420187,1752996633043,-460.0,0.0001725,2]
[373420189,1752996633053,-323.21040052,0.0001725,2]
[373420191,1752996633065,-460.0,0.0001725,2]
[373420193,1752996633074,-460.0,0.0001725,2]
[373420195,1752996633084,-460.0,0.0001725,2]
[373420197,1752996633093,-460.0,0.0001725,2]
[373420199,1752996633104,-460.0,0.0001725,2]
[373420201,1752996633114,-549.59061715,0.0001725,2]